[Event "Championnat du monde jeunes U12F"]
[Date "2024.11.18"]
[White "Busuioc, Amelie"]
[Black "Jordan, Christina"]
[WhiteElo "1581"]
[BlackElo "1803"]
[Round "4.26"]
[Result "0-1"]
[TimeControl "5400+30"]

1. e4 {[%clk 1:30:59]} 1... c5 {[%clk 1:30:55]} 2. Nf3 {[%clk 1:31:24]} 2... d6
{[%clk 1:31:22]} 3. d4 {[%clk 1:31:49]} 3... cxd4 {[%clk 1:31:48]} 4. Nxd4
{[%clk 1:32:13]} 4... Nf6 {[%clk 1:32:14]} 5. Nc3 {[%clk 1:32:33]} 5... a6
{[%clk 1:32:40]} 6. Bc4 {[%clk 1:32:36]} 6... b5 {[%clk 1:30:59]} 7. Bb3 {[%clk
1:32:50]} 7... Bb7 {[%clk 1:31:05]} 8. f3 {[%clk 1:32:49]} 8... g6 {[%clk
1:28:58]} 9. a3 {[%clk 1:30:54]} 9... Bg7 {[%clk 1:28:45]} 10. Be3 {[%clk
1:30:10]} 10... Nbd7 {[%clk 1:27:11]} 11. Qd2 {[%clk 1:29:00]} 11... Nc5 {[%clk
1:21:27]} 12. h4 {[%clk 1:27:31]} 12... h5 {[%clk 1:18:39]} 13. Ba2 {[%clk
1:24:52]} 13... Rc8 {[%clk 1:17:33]} 14. O-O-O {[%clk 1:23:38]} 14... Nfd7
{[%clk 1:12:14]} 15. g4 {[%clk 1:20:48]} 15... hxg4 {[%clk 1:11:20]} 16. fxg4
{[%clk 1:21:06]} 16... Nxe4 {[%clk 1:11:07]} 17. Nxe4 {[%clk 1:21:16]} 17...
Bxe4 {[%clk 1:11:35]} 18. Rh3 {[%clk 1:20:51]} 18... Bxd4 {[%clk 1:07:48]} 19.
c3 {[%clk 1:18:32]} 19... Bxe3 {[%clk 1:05:08]} 20. Qxe3 {[%clk 1:17:31]} 20...
d5 {[%clk 1:00:37]} 21. Bb1 {[%clk 1:15:19]} 21... Nc5 {[%clk 0:57:15]} 22. Bc2
{[%clk 1:08:42]} 22... a5 {[%clk 0:52:53]} 23. h5 {[%clk 1:03:35]} 23... gxh5
{[%clk 0:47:18]} 24. Rxh5 {[%clk 1:01:38]} 24... Rxh5 {[%clk 0:47:29]} 25. gxh5
{[%clk 1:01:47]} 25... e6 {[%clk 0:42:54]} 26. Bxe4 {[%clk 0:58:51]} 26... Nxe4
{[%clk 0:43:11]} 27. Rh1 {[%clk 0:58:57]} 27... Qg5 {[%clk 0:41:17]} 28. Qxg5
{[%clk 0:57:49]} 28... Nxg5 {[%clk 0:41:44]} 29. h6 {[%clk 0:58:03]} 29... Ke7
{[%clk 0:42:09]} 30. h7 {[%clk 0:58:19]} 30... Rh8 {[%clk 0:42:34]} 0-1

[Variant "Standard"]
[Site "Europe Echecs"]

[Event "Championnat du monde jeunes U12F"]
[Date "2024.11.18"]
[White "Saharkar, Sharvari"]
[Black "Lukin, Yesenia"]
[WhiteElo "1581"]
[BlackElo "1732"]
[Round "4.27"]
[Result "0-1"]
[TimeControl "5400+30"]

1. e4 {[%clk 1:30:56]} 1... c6 {[%clk 1:30:58]} 2. d4 {[%clk 1:31:07]} 2... d5
{[%clk 1:31:16]} 3. Nc3 {[%clk 1:31:24]} 3... dxe4 {[%clk 1:31:27]} 4. Nxe4
{[%clk 1:30:58]} 4... Nf6 {[%clk 1:31:39]} 5. Nxf6+ {[%clk 1:30:23]} 5... exf6
{[%clk 1:31:59]} 6. Nf3 {[%clk 1:27:42]} 6... Bg4 {[%clk 1:30:52]} 7. c3 {[%clk
1:26:07]} 7... Bd6 {[%clk 1:26:16]} 8. Be2 {[%clk 1:23:28]} 8... O-O {[%clk
1:24:17]} 9. O-O {[%clk 1:22:49]} 9... Qc7 {[%clk 1:22:09]} 10. h3 {[%clk
1:22:14]} 10... Bh5 {[%clk 1:20:47]} 11. Be3 {[%clk 1:19:05]} 11... Re8 {[%clk
1:17:00]} 12. Qc2 Nd7 {[%clk 1:12:57]} 13. Rfe1 {[%clk 1:12:42]} 13... Re7
{[%clk 1:10:34]} 14. Nd2 {[%clk 1:09:17]} 14... Bg6 {[%clk 1:09:01]} 15. Bd3
{[%clk 1:08:13]} 15... Bxd3 {[%clk 1:06:14]} 16. Qxd3 {[%clk 1:08:09]} 16...
Rae8 {[%clk 1:06:03]} 17. Re2 {[%clk 1:06:28]} 17... Qa5 {[%clk 1:00:21]} 18. a4
{[%clk 0:59:19]} 18... c5 {[%clk 0:51:32]} 19. dxc5 {[%clk 0:54:50]} 19... Bxc5
{[%clk 0:50:00]} 20. b4 {[%clk 0:53:58]} 20... Ne5 {[%clk 0:48:01]} 21. Qd5
{[%clk 0:48:38]} 21... Bxb4 {[%clk 0:47:59]} 22. Qb3 {[%clk 0:42:49]} 22... Bxc3
{[%clk 0:41:48]} 23. Rc1 {[%clk 0:40:10]} 23... Qa6 {[%clk 0:35:06]} 24. Rce1
{[%clk 0:37:15]} 24... Bxd2 {[%clk 0:34:21]} 25. Rxd2 {[%clk 0:37:12]} 25... Nc4
{[%clk 0:30:49]} 26. Rd4 {[%clk 0:35:15]} 26... Nxe3 {[%clk 0:28:58]} 27. Rxe3
{[%clk 0:35:32]} 27... g6 {[%clk 0:27:16]} 28. Rxe7 {[%clk 0:31:16]} 28... Rxe7
{[%clk 0:27:34]} 29. Rd8+ {[%clk 0:31:31]} 29... Kg7 {[%clk 0:27:40]} 30. Qb4
{[%clk 0:30:35]} 30... Qe6 {[%clk 0:25:00]} 31. Kh2 {[%clk 0:28:05]} 31... Qe5+
{[%clk 0:25:05]} 32. f4 {[%clk 0:28:12]} 32... Qe4 {[%clk 0:24:42]} 33. Rd4
{[%clk 0:26:08]} 33... Qe1 {[%clk 0:23:05]} 34. Qb2 {[%clk 0:24:33]} 34... Qe3
{[%clk 0:20:21]} 35. Qb4 {[%clk 0:23:48]} 35... b6 {[%clk 0:18:24]} 36. Rd1
{[%clk 0:22:18]} 36... Re4 {[%clk 0:16:34]} 37. Qb2 {[%clk 0:21:13]} 37... Qxf4+
{[%clk 0:16:01]} 38. Kg1 {[%clk 0:20:43]} 38... Qe5 {[%clk 0:16:01]} 39. Qf2
{[%clk 0:18:44]} 39... Qc5 {[%clk 0:16:22]} 40. Qxc5 {[%clk 0:16:52]} 40... bxc5
{[%clk 0:16:41]} 41. Rc1 {[%clk 0:15:42]} 41... Rxa4 {[%clk 0:16:59]} 42. Rxc5
{[%clk 0:15:59]} 42... f5 {[%clk 0:17:01]} 43. Rc8 {[%clk 0:16:05]} 43... a5
{[%clk 0:17:21]} 44. Ra8 {[%clk 0:15:31]} 44... g5 {[%clk 0:17:28]} 45. Kf2
{[%clk 0:15:49]} 45... Ra2+ {[%clk 0:15:47]} 46. Kf3 {[%clk 0:15:39]} 46... g4+
{[%clk 0:15:35]} 47. Kg3 {[%clk 0:15:02]} 47... Ra3+ {[%clk 0:15:41]} 48. Kf2
{[%clk 0:14:30]} 48... gxh3 {[%clk 0:15:46]} 49. gxh3 {[%clk 0:14:51]} 49... a4
{[%clk 0:15:54]} 50. Ra5 {[%clk 0:14:26]} 50... f4 {[%clk 0:15:24]} 51. h4
{[%clk 0:12:52]} 51... h6 {[%clk 0:15:31]} 52. Ra6 {[%clk 0:10:16]} 52... h5
{[%clk 0:15:30]} 53. Ke2 {[%clk 0:09:56]} 53... Re3+ {[%clk 0:15:41]} 54. Kf2
{[%clk 0:10:09]} 54... a3 {[%clk 0:15:52]} 55. Ra4 {[%clk 0:09:53]} 55... Rh3
{[%clk 0:14:30]} 56. Rxf4 {[%clk 0:09:51]} 56... a2 {[%clk 0:14:34]} 57. Ra4
{[%clk 0:09:47]} 57... Rxh4 {[%clk 0:14:30]} 58. Rxa2 {[%clk 0:09:56]} 58...
Rh2+ {[%clk 0:14:45]} 59. Kg3 {[%clk 0:10:16]} 59... Rxa2 {[%clk 0:15:08]} 60.
Kh4 {[%clk 0:09:30]} 60... Kg6 {[%clk 0:15:22]} 61. Kh3 {[%clk 0:09:33]} 61...
Ra3+ {[%clk 0:15:38]} 62. Kh4 {[%clk 0:09:48]} 62... Ra4+ {[%clk 0:15:57]} 63.
Kh3 {[%clk 0:09:41]} 63... f5 {[%clk 0:16:18]} 64. Kg3 {[%clk 0:09:11]} 64...
Kg5 {[%clk 0:16:35]} 65. Kh3 {[%clk 0:08:47]} 65... Ra3+ {[%clk 0:16:55]} 66.
Kh2 {[%clk 0:07:24]} 66... h4 {[%clk 0:17:17]} 67. Kg2 {[%clk 0:07:49]} 67...
h3+ {[%clk 0:17:40]} 68. Kh2 {[%clk 0:08:13]} 68... Kg4 {[%clk 0:18:03]} 69. Kh1
{[%clk 0:08:33]} 69... Kg3 {[%clk 0:18:22]} 70. Kg1 {[%clk 0:08:50]} 70... Ra1#
0-1

[Variant "Standard"]
[Site "Europe Echecs"]

[Event "Championnat du monde jeunes U12F"]
[Date "2024.11.18"]
[White "Xu, Melissa"]
[Black "Moscovitch, Shelly"]
[WhiteElo "1731"]
[BlackElo "1552"]
[Round "4.28"]
[Result "1-0"]
[TimeControl "5400+30"]

1. e4 {[%clk 1:30:53]} 1... e5 {[%clk 1:30:22]} 2. Nf3 {[%clk 1:31:19]} 2... Nc6
{[%clk 1:29:41]} 3. Bc4 {[%clk 1:31:42]} 3... Bc5 {[%clk 1:29:04]} 4. O-O {[%clk
1:32:01]} 4... Nf6 {[%clk 1:27:59]} 5. d3 {[%clk 1:31:46]} 5... d6 {[%clk
1:26:18]} 6. c3 {[%clk 1:31:26]} 6... a5 {[%clk 1:25:07]} 7. a4 {[%clk 1:29:00]}
7... Ba7 {[%clk 1:22:36]} 8. Nbd2 {[%clk 1:27:01]} 8... O-O {[%clk 1:20:55]} 9.
h3 {[%clk 1:25:45]} 9... Ne7 {[%clk 1:19:06]} 10. Re1 {[%clk 1:21:08]} 10... Ng6
{[%clk 1:17:07]} 11. Nf1 {[%clk 1:19:53]} 11... c6 {[%clk 1:15:16]} 12. Bb3
{[%clk 1:15:54]} 12... h6 {[%clk 1:12:58]} 13. Ng3 {[%clk 1:14:29]} 13... Kh8
{[%clk 1:07:49]} 14. Qc2 {[%clk 1:10:28]} 14... Nh7 {[%clk 1:04:10]} 15. d4
{[%clk 1:07:33]} 15... exd4 {[%clk 0:53:20]} 16. cxd4 {[%clk 1:07:37]} 16... Nh4
{[%clk 0:45:21]} 17. Nxh4 {[%clk 1:03:57]} 17... Qxh4 {[%clk 0:45:24]} 18. Qc3
{[%clk 1:01:58]} 18... f5 {[%clk 0:42:33]} 19. exf5 {[%clk 0:55:49]} 19... Bxf5
{[%clk 0:36:02]} 20. Nxf5 {[%clk 0:49:49]} 20... Rxf5 {[%clk 0:36:07]} 21. Be3
{[%clk 0:46:28]} 21... Ng5 {[%clk 0:26:35]} 22. Bc2 {[%clk 0:41:31]} 22... Rf6
{[%clk 0:23:57]} 23. Qd3 {[%clk 0:38:01]} 23... d5 {[%clk 0:18:03]} 24. Rad1
{[%clk 0:34:03]} 24... Raf8 {[%clk 0:16:13]} 25. Re2 {[%clk 0:32:11]} 25... Bb8
{[%clk 0:10:48]} 26. Rde1 {[%clk 0:22:31]} 26... g6 {[%clk 0:08:01]} 27. Bxg5
{[%clk 0:19:02]} 27... Qxg5 {[%clk 0:08:00]} 28. g3 {[%clk 0:13:36]} 28... h5
{[%clk 0:06:21]} 29. Qd2 {[%clk 0:13:00]} 29... Qxd2 {[%clk 0:06:09]} 30. Rxd2
{[%clk 0:13:21]} 30... Bd6 {[%clk 0:06:04]} 31. Re3 {[%clk 0:11:09]} 31... h4
{[%clk 0:04:55]} 32. Rb3 {[%clk 0:09:27]} 32... hxg3 {[%clk 0:03:49]} 33. fxg3
{[%clk 0:08:15]} 33... Bb4 {[%clk 0:03:55]} 34. Re2 {[%clk 0:07:07]} 34... Kg7
{[%clk 0:03:47]} 35. Rbe3 {[%clk 0:06:43]} 35... Rf3 {[%clk 0:02:53]} 36. Rxf3
{[%clk 0:06:39]} 36... Rxf3 {[%clk 0:03:16]} 37. Kg2 {[%clk 0:06:57]} 37... Rf6
{[%clk 0:03:25]} 38. Re8 {[%clk 0:07:07]} 38... Rf7 {[%clk 0:03:05]} 39. Re2
{[%clk 0:07:09]} 39... Rf6 {[%clk 0:02:05]} 40. Bd3 {[%clk 0:06:45]} 40... Rf8
{[%clk 0:02:11]} 41. h4 {[%clk 0:06:46]} 41... Rf6 {[%clk 0:02:14]} 42. Re5
{[%clk 0:06:36]} 42... Kf7 {[%clk 0:01:51]} 43. Re2 {[%clk 0:05:51]} 43... Kg7
{[%clk 0:01:56]} 44. Re8 {[%clk 0:05:54]} 44... Kf7 {[%clk 0:02:12]} 45. Rb8
{[%clk 0:06:08]} 45... Ke6 {[%clk 0:01:15]} 46. Rxb7 {[%clk 0:06:27]} 46... Bf8
{[%clk 0:00:53]} 47. Rb6 {[%clk 0:06:17]} 47... Kd7 {[%clk 0:00:51]} 48. Ra6
{[%clk 0:06:27]} 48... Bb4 {[%clk 0:01:14]} 49. Ra7+ {[%clk 0:06:39]} 49... Kd6
{[%clk 0:01:08]} 50. Rg7 {[%clk 0:06:45]} 50... c5 {[%clk 0:00:53]} 51. dxc5+
{[%clk 0:06:55]} 51... Kxc5 {[%clk 0:01:16]} 52. Bxg6 {[%clk 0:07:15]} 52... d4
{[%clk 0:01:20]} 53. h5 {[%clk 0:07:26]} 53... Bd2 {[%clk 0:01:12]} 54. Rb7
{[%clk 0:06:32]} 54... Rd6 {[%clk 0:00:49]} 55. Bd3 {[%clk 0:06:36]} 55... Kc6
{[%clk 0:00:48]} 56. Rb5 {[%clk 0:06:47]} 56... Rh6 {[%clk 0:00:49]} 57. g4
{[%clk 0:07:00]} 57... Bb4 {[%clk 0:00:52]} 58. Kg3 {[%clk 0:06:57]} 58... Be1+
{[%clk 0:01:04]} 59. Kf4 {[%clk 0:06:30]} 59... Bd2+ {[%clk 0:01:24]} 60. Kf5
{[%clk 0:06:31]} 60... Bb4 {[%clk 0:01:00]} 61. Be4+ {[%clk 0:06:23]} 61... Kc7
{[%clk 0:01:14]} 62. Rb7+ {[%clk 0:05:22]} 62... Kc8 {[%clk 0:01:12]} 63. Rb5
{[%clk 0:05:25]} 1-0

[Variant "Standard"]
[Site "Europe Echecs"]

[Event "Championnat du monde jeunes U12F"]
[Date "2024.11.18"]
[White "Xikmatkhonova, Mokhinur"]
[Black "Laurincova, Timea"]
[WhiteElo "1726"]
[BlackElo "1549"]
[Round "4.29"]
[Result "1/2-1/2"]
[TimeControl "5400+30"]

1. e4 {[%clk 1:30:10]} 1... c5 {[%clk 1:30:54]} 2. Nf3 {[%clk 1:30:33]} 2... Nc6
{[%clk 1:31:19]} 3. d4 {[%clk 1:30:59]} 3... cxd4 {[%clk 1:31:43]} 4. Nxd4
{[%clk 1:31:25]} 4... g6 {[%clk 1:32:02]} 5. c4 {[%clk 1:31:50]} 5... Nf6 {[%clk
1:32:21]} 6. Nc3 {[%clk 1:31:29]} 6... d6 {[%clk 1:32:34]} 7. Be2 {[%clk
1:23:20]} 7... Nxd4 {[%clk 1:32:40]} 8. Qxd4 {[%clk 1:23:32]} 8... Bg7 {[%clk
1:32:58]} 9. Be3 {[%clk 1:23:31]} 9... O-O {[%clk 1:33:03]} 10. Qd2 {[%clk
1:23:40]} 10... a5 {[%clk 1:31:01]} 11. f3 {[%clk 1:22:45]} 11... a4 {[%clk
1:30:22]} 12. O-O {[%clk 1:21:20]} 12... Qa5 {[%clk 1:30:43]} 13. Rac1 {[%clk
1:19:02]} 13... Be6 {[%clk 1:29:49]} 14. Nd5 {[%clk 1:11:40]} 14... Qxd2 {[%clk
1:29:53]} 15. Nxe7+ {[%clk 1:10:46]} 15... Kh8 {[%clk 1:30:04]} 16. Bxd2 {[%clk
1:11:14]} 16... Rfe8 {[%clk 1:30:00]} 17. Nd5 {[%clk 1:11:27]} 17... Nxd5 {[%clk
1:29:24]} 18. cxd5 {[%clk 1:11:03]} 18... Bxd5 {[%clk 1:29:35]} 19. Bb5 {[%clk
1:10:57]} 19... Re5 {[%clk 1:29:26]} 20. Bc3 {[%clk 1:10:57]} 20... Bxa2 {[%clk
1:28:31]} 21. Bxe5 {[%clk 1:09:21]} 21... Bxe5 {[%clk 1:28:27]} 22. Rc2 {[%clk
1:07:45]} 22... Bb3 {[%clk 1:26:53]} 23. Rd2 {[%clk 1:05:32]} 23... Ra5 {[%clk
1:25:32]} 24. Bd3 {[%clk 1:05:22]} 24... b5 {[%clk 1:24:53]} 25. g3 {[%clk
0:50:44]} 25... b4 {[%clk 1:21:47]} 26. Bb1 {[%clk 0:44:45]} 26... a3 {[%clk
1:16:33]} 27. bxa3 {[%clk 0:43:33]} 27... bxa3 {[%clk 1:16:47]} 28. Ba2 {[%clk
0:43:37]} 28... Bxa2 {[%clk 1:14:59]} 29. Rxa2 {[%clk 0:44:06]} 29... Bb2 {[%clk
1:15:16]} 30. Rd1 {[%clk 0:37:41]} 30... Ra6 {[%clk 1:15:21]} 31. Rd2 {[%clk
0:32:55]} 31... Rc6 {[%clk 1:14:32]} 32. Kf2 {[%clk 0:27:18]} 32... Kg7 {[%clk
1:14:23]} 33. Ke2 {[%clk 0:25:10]} 33... Kf6 {[%clk 1:13:18]} 34. f4 {[%clk
0:25:10]} 34... Ke6 {[%clk 1:11:37]} 35. Raxb2 {[%clk 0:19:30]} 35... axb2
{[%clk 1:11:31]} 36. Rxb2 {[%clk 0:19:59]} 36... f5 {[%clk 1:10:06]} 37. exf5+
{[%clk 0:18:12]} 37... Kxf5 {[%clk 1:10:21]} 38. Kd3 {[%clk 0:16:09]} 38... Rc7
{[%clk 1:08:36]} 39. Kd4 {[%clk 0:16:03]} 39... Ke6 {[%clk 1:07:45]} 40. h3
{[%clk 0:13:06]} 40... h5 {[%clk 1:04:48]} 41. Re2+ {[%clk 0:09:10]} 41... Kf5
{[%clk 0:56:29]} 42. Ra2 {[%clk 0:01:57]} 42... Rc5 {[%clk 0:53:43]} 43. Ra3
{[%clk 0:01:31]} 43... h4 {[%clk 0:52:20]} 44. Rf3 {[%clk 0:01:17]} 44... hxg3
{[%clk 0:46:55]} 45. Rxg3 {[%clk 0:01:41]} 45... Kf6 {[%clk 0:47:08]} 46. Rd3
{[%clk 0:00:51]} 46... Kf5 {[%clk 0:46:10]} 47. Rg3 {[%clk 0:00:50]} 47... Kf6
{[%clk 0:45:31]} 48. Rd3 {[%clk 0:01:14]} 48... Ra5 {[%clk 0:39:41]} 49. Ke4
{[%clk 0:00:54]} 49... Ke6 {[%clk 0:37:57]} 50. Kf3 {[%clk 0:00:36]} 50... Rh5
{[%clk 0:34:27]} 51. Kg4 {[%clk 0:00:36]} 51... d5 {[%clk 0:34:24]} 52. Re3+
{[%clk 0:00:58]} 52... Kf6 {[%clk 0:33:12]} 53. Re8 {[%clk 0:00:35]} 53... Kf7
{[%clk 0:28:05]} 54. Rd8 {[%clk 0:00:40]} 54... Rf5 {[%clk 0:25:03]} 55. Rd6
{[%clk 0:00:42]} 55... Kg7 {[%clk 0:23:16]} 56. Rd8 {[%clk 0:00:38]} 56... Rh5
{[%clk 0:22:49]} 57. Rd6 {[%clk 0:00:35]} 57... Kf7 {[%clk 0:22:40]} 58. Ra6
{[%clk 0:00:38]} 58... Rh6 {[%clk 0:21:53]} 59. Rd6 {[%clk 0:00:45]} 59... Rh5
{[%clk 0:20:40]} 60. Ra6 {[%clk 0:01:09]} 60... Kg7 {[%clk 0:20:12]} 61. Ra7+
{[%clk 0:00:58]} 61... Kh6 {[%clk 0:20:16]} 62. Rf7 {[%clk 0:00:37]} 62... d4
{[%clk 0:15:41]} 63. Rd7 {[%clk 0:00:57]} 63... Ra5 {[%clk 0:15:26]} 64. Rxd4
{[%clk 0:01:26]} 64... Rb5 {[%clk 0:15:39]} 65. Rc4 {[%clk 0:00:46]} 65... Rb1
{[%clk 0:14:36]} 66. Rc3 {[%clk 0:00:41]} 66... Rg1+ {[%clk 0:14:36]} 67. Rg3
{[%clk 0:01:00]} 67... Rb1 {[%clk 0:14:52]} 68. Rg2 {[%clk 0:01:16]} 68... Rb5
{[%clk 0:15:02]} 69. Rc2 {[%clk 0:01:01]} 69... Rb1 {[%clk 0:15:17]} 70. Rc3
{[%clk 0:01:16]} 70... Rg1+ {[%clk 0:15:24]} 71. Rg3 {[%clk 0:01:16]} 71... Rb1
{[%clk 0:15:40]} 72. Rg2 {[%clk 0:00:33]} 72... Rb5 {[%clk 0:15:58]} 73. h4
{[%clk 0:00:40]} 73... Rc5 {[%clk 0:15:28]} 74. Rg1 {[%clk 0:01:01]} 74... Rb5
{[%clk 0:15:28]} 75. Re1 {[%clk 0:01:06]} 75... Rc5 {[%clk 0:14:01]} 76. Re5
{[%clk 0:00:35]} 76... Rc1 {[%clk 0:14:23]} 77. Re3 {[%clk 0:01:01]} 77... Rg1+
{[%clk 0:14:35]} 78. Rg3 {[%clk 0:00:54]} 78... Rc1 {[%clk 0:14:46]} 79. Rg2
{[%clk 0:01:09]} 79... Rc5 {[%clk 0:14:56]} 80. Rg1 {[%clk 0:01:29]} 80... Rb5
{[%clk 0:15:14]} 81. Rh1 {[%clk 0:01:49]} 81... Rc5 {[%clk 0:14:55]} 82. Rb1
{[%clk 0:01:52]} 82... Ra5 83. Ra1 1/2-1/2

[Variant "Standard"]
[Site "Europe Echecs"]

[Event "Championnat du monde jeunes U12F"]
[Date "2024.11.18"]
[White "Mrad, Anahid"]
[Black "Tsinjoviniavo, Aina Mahasambatra"]
[WhiteElo "1558"]
[BlackElo "1716"]
[Round "4.30"]
[Result "1-0"]
[TimeControl "5400+30"]

1. e4 {[%clk 1:30:56]} 1... e5 {[%clk 1:30:44]} 2. Nf3 {[%clk 1:31:18]} 2... Nc6
{[%clk 1:30:56]} 3. Bc4 {[%clk 1:31:38]} 3... Be7 {[%clk 1:30:56]} 4. Nc3 {[%clk
1:31:01]} 4... Nf6 {[%clk 1:31:10]} 5. d4 {[%clk 1:30:41]} 5... exd4 {[%clk
1:29:03]} 6. Nxd4 {[%clk 1:30:46]} 6... Nxe4 {[%clk 1:27:26]} 7. Nxc6 {[%clk
1:19:02]} 7... bxc6 {[%clk 1:26:42]} 8. Nxe4 {[%clk 1:13:50]} 8... d5 {[%clk
1:26:52]} 9. Qd4 {[%clk 1:09:36]} 9... O-O {[%clk 1:25:42]} 10. Bd3 {[%clk
1:06:14]} 10... dxe4 {[%clk 1:22:12]} 11. Qxe4 {[%clk 1:06:01]} 11... f5 {[%clk
1:20:25]} 12. Qxc6 {[%clk 1:03:12]} 12... Bb4+ {[%clk 1:16:26]} 13. Bd2 {[%clk
1:00:08]} 13... Bxd2+ {[%clk 1:15:21]} 14. Kxd2 {[%clk 1:00:00]} 14... Rb8
{[%clk 1:15:02]} 15. Rad1 {[%clk 0:45:09]} 15... Bb7 {[%clk 1:11:02]} 16. Qe6+
{[%clk 0:41:17]} 16... Kh8 {[%clk 1:10:57]} 17. Kc1 {[%clk 0:40:33]} 17... Bxg2
{[%clk 1:01:22]} 18. Rhg1 {[%clk 0:36:12]} 18... Bf3 {[%clk 0:56:04]} 19. Rd2
{[%clk 0:32:09]} 19... Qf6 {[%clk 0:46:45]} 20. Qxf6 {[%clk 0:31:36]} 20... Rxf6
{[%clk 0:47:11]} 21. Bc4 {[%clk 0:28:42]} 21... Rh6 {[%clk 0:44:35]} 22. Rd7
{[%clk 0:26:07]} 22... g6 {[%clk 0:42:59]} 23. Rg3 {[%clk 0:25:04]} 23... Bg4
{[%clk 0:42:29]} 24. f3 {[%clk 0:24:23]} 24... Bh3 {[%clk 0:40:25]} 25. Rxc7
{[%clk 0:23:40]} 25... f4 {[%clk 0:40:15]} 26. Rg1 {[%clk 0:23:38]} 26... Bf5
{[%clk 0:40:35]} 27. Rh1 {[%clk 0:23:45]} 27... Rh3 {[%clk 0:40:52]} 28. Bd5
{[%clk 0:22:49]} 28... Rd8 {[%clk 0:41:10]} 29. c4 {[%clk 0:22:39]} 29... a6
{[%clk 0:41:21]} 30. Ra7 {[%clk 0:22:38]} 30... Bc8 {[%clk 0:41:40]} 31. Kc2
{[%clk 0:22:33]} 31... Rh5 {[%clk 0:41:44]} 32. Kc3 {[%clk 0:22:11]} 32... Re5
{[%clk 0:41:50]} 33. Ra8 {[%clk 0:21:15]} 33... Rde8 {[%clk 0:41:48]} 34. Bc6
{[%clk 0:20:20]} 34... Re3+ {[%clk 0:41:49]} 35. Kb4 {[%clk 0:20:14]} 35... Bd7
{[%clk 0:41:54]} 36. Rxe8+ {[%clk 0:20:03]} 36... Bxe8 {[%clk 0:42:22]} 37. Bxe8
{[%clk 0:20:12]} 37... Rxe8 {[%clk 0:42:50]} 38. c5 {[%clk 0:19:51]} 38... Rb8+
{[%clk 0:43:04]} 39. Kc3 {[%clk 0:19:34]} 39... Rb5 {[%clk 0:43:27]} 40. b4
{[%clk 0:19:53]} 40... a5 {[%clk 0:43:41]} 41. a3 {[%clk 0:20:10]} 41... axb4+
{[%clk 0:44:05]} 42. axb4 {[%clk 0:20:27]} 42... Kg7 {[%clk 0:44:30]} 43. Kc4
{[%clk 0:20:46]} 43... Rb8 {[%clk 0:44:48]} 44. Rd1 {[%clk 0:20:55]} 44... Kf6
{[%clk 0:45:04]} 45. Rd4 {[%clk 0:21:10]} 45... g5 {[%clk 0:45:05]} 46. b5
{[%clk 0:21:25]} 46... h5 {[%clk 0:45:29]} 47. c6 {[%clk 0:21:32]} 47... Ke5
{[%clk 0:45:21]} 48. c7 {[%clk 0:20:08]} 48... Rc8 {[%clk 0:45:46]} 49. b6
{[%clk 0:20:28]} 49... g4 {[%clk 0:46:13]} 50. fxg4 {[%clk 0:20:35]} 50... hxg4
{[%clk 0:46:41]} 51. Rd7 {[%clk 0:20:36]} 51... f3 {[%clk 0:46:17]} 52. b7
{[%clk 0:19:26]} 52... f2 {[%clk 0:46:40]} 53. bxc8=Q {[%clk 0:18:28]} 53...
f1=Q+ {[%clk 0:47:00]} 54. Kc5 {[%clk 0:17:55]} 54... Qf2+ {[%clk 0:46:59]} 55.
Kc6 {[%clk 0:17:31]} 55... Qf3+ {[%clk 0:47:23]} 56. Kb6 {[%clk 0:17:51]} 56...
Qe3+ {[%clk 0:45:51]} 57. Kb7 {[%clk 0:17:46]} 57... Qb3+ {[%clk 0:45:55]} 58.
Ka8 {[%clk 0:18:05]} 58... Qa4+ {[%clk 0:46:15]} 59. Kb8 {[%clk 0:18:19]} 59...
Qb5+ {[%clk 0:46:34]} 60. Qb7 {[%clk 0:18:30]} 1-0

[Variant "Standard"]
[Site "Europe Echecs"]

[Event "Championnat du monde jeunes U12F"]
[Date "2024.11.18"]
[White "Li, Yeeshuen"]
[Black "Messali Anger, Ilyana"]
[WhiteElo "1546"]
[BlackElo "1687"]
[Round "4.31"]
[Result "1-0"]
[TimeControl "5400+30"]

1. e4 {[%clk 1:30:57]} 1... e5 {[%clk 1:30:46]} 2. Nf3 {[%clk 1:31:22]} 2... Nc6
{[%clk 1:31:03]} 3. Bc4 {[%clk 1:31:46]} 3... Nf6 {[%clk 1:31:05]} 4. d4 {[%clk
1:31:35]} 4... exd4 {[%clk 1:30:46]} 5. O-O {[%clk 1:31:41]} 5... Nxe4 {[%clk
1:28:54]} 6. Re1 {[%clk 1:31:49]} 6... d5 {[%clk 1:28:03]} 7. Bxd5 {[%clk
1:31:59]} 7... Qxd5 {[%clk 1:28:06]} 8. Nc3 {[%clk 1:32:10]} 8... Qd7 {[%clk
1:26:55]} 9. Nxe4 {[%clk 1:31:23]} 9... Be7 {[%clk 1:26:43]} 10. Bg5 {[%clk
1:28:17]} 10... O-O {[%clk 1:26:05]} 11. Bxe7 {[%clk 1:26:59]} 11... Qxe7 {[%clk
1:25:00]} 12. Ng3 {[%clk 1:18:00]} 12... Qb4 {[%clk 1:22:14]} 13. Qc1 {[%clk
1:08:47]} 13... Bd7 {[%clk 1:09:58]} 14. Re4 {[%clk 1:03:41]} 14... Rfe8 {[%clk
1:06:54]} 15. Rh4 {[%clk 0:59:57]} 15... h6 {[%clk 1:04:41]} 16. Nh5 {[%clk
0:56:20]} 16... Ne5 {[%clk 0:46:50]} 17. Nxg7 {[%clk 0:52:50]} 17... Re7 {[%clk
0:21:39]} 18. Qxh6 {[%clk 0:51:44]} 18... Ng6 {[%clk 0:17:44]} 19. Nh5 {[%clk
0:50:58]} 19... f5 {[%clk 0:14:06]} 20. Qxg6+ {[%clk 0:51:11]} 20... Kf8 {[%clk
0:14:08]} 21. Nf6 {[%clk 0:48:54]} 21... Re2 {[%clk 0:13:14]} 22. Rh8+ {[%clk
0:48:53]} 22... Ke7 {[%clk 0:13:25]} 23. Nd5# 1-0

[Variant "Standard"]
[Site "Europe Echecs"]